Cogmind - Beta 17 @@@ ROGUE MODE // 2026.07.07 @ 18:15:26 Player: kite Result: Self-destructed Performance ------------- Evolutions (2) 1000 Regions Visited (7) 1400 Robots Destroyed (55) 275 Value Destroyed (1487) 1487 Prototype IDs (28) 560 Alien Tech Used (0) 0 Bonus (395) 395 TOTAL SCORE: 5117 Bonus ------- High Alert Combat Kills 8 Follower Combat Kills 87 Aligned with FarCom 300 Cogmind --------- Core Integrity 393/550 Matter 300/300 Energy 100/100 System Corruption 11% Temperature Cool (0) Movement Walking (175) Ox1 Location -8/Materials Parts ------- > --- POWER (1) -------- (None) > --- PROPULSION (4) --- Aluminum Leg Aluminum Leg Aluminum Leg > --- UTILITY (3) ------ High-capacity Storage Unit > --- WEAPON (3) ------- Hammer Hammer > --- INVENTORY (20) --- Light Treads High-capacity Storage Unit Reflective Plating Reflective Plating Reflective Plating Hacking Suite Spread Laser Spread Laser Spread Laser Rocket Launcher Field Lobotomy Kit (5) Hammer Mace Mace Mace Peak State ------------ > --- POWER ------------ Cooled Ion Engine > --- PROPULSION ------- Aluminum Leg Aluminum Leg Carbon-fiber Leg Carbon-fiber Leg > --- UTILITY ---------- Large Storage Unit Experimental Sensor Array > --- WEAPON ----------- Hammer Hammer Hammer > --- INVENTORY -------- Light Treads High-capacity Storage Unit Rocket Launcher Field Lobotomy Kit [Rating: 25] Favorites ----------- Power Cooled Ion Engine Engine Cooled Ion Engine Propulsion Light Treads Treads Light Treads Leg Aluminum Leg Utility Small Storage Unit Device Experimental Sensor Array Storage Small Storage Unit Protection Hardened Light Armor Plating Weapon Hammer Energy Gun EM Pulse Gun Energy Cannon Advanced Beam Cannon Ballistic Gun Autogun Launcher Rocket Launcher Impact Weapon Hammer Build | -11 -10 -10 -9 -9 -9 -8 -8 ------- Run | Yrd Mat Min Mat Min Exi Min Mat Slots Evolved 4 | . . . 2 . . . 2 Power . | . . . . . . . . Propulsion 2 | . . . 2 . . . . Utility 1 | . . . . . . . 1 Weapon 1 | . . . . . . . 1 Parts Attached 46 | 5 6 . 19 3 1 4 8 Power 5 | 2 1 . 2 . . . . Engine 5 | 2 1 . 2 . . . . Core . | . . . . . . . . Reactor . | . . . . . . . . Propulsion 16 | 2 . . 8 1 . 4 1 Treads 11 | 2 . . 8 1 . . . Leg 5 | . . . . . . 4 1 Wheel . | . . . . . . . . Hover . | . . . . . . . . Flight . | . . . . . . . . Utility 12 | 1 1 . 3 1 1 . 5 Device 1 | . . . . . . . 1 Storage 3 | 1 . . . . 1 . 1 Processor . | . . . . . . . . Hackware . | . . . . . . . . Protection 8 | . 1 . 3 1 . . 3 Artifact . | . . . . . . . . Weapon 13 | . 4 . 6 1 . . 2 Energy Gun 5 | . 4 . 1 . . . . Energy Cannon 1 | . . . 1 . . . . Ballistic Gun 2 | . . . 2 . . . . Ballistic Cannon . | . . . . . . . . Launcher 1 | . . . . 1 . . . Special Weapon . | . . . . . . . . Impact Weapon 4 | . . . 2 . . . 2 Slashing Weapon . | . . . . . . . . Piercing Weapon . | . . . . . . . . Special Melee Weapon . | . . . . . . . . Unidentified Prototypes 5 | . 1 . 3 . . . 1 Corrupted Parts 3 | . . . 1 . . 2 . System Corruption 21 | . . . 14 . . 7 . Parts Lost 16 | . . . 6 4 . . 6 Power 2 | . . . 1 . . . 1 Propulsion 6 | . . . 2 2 . . 2 Utility 5 | . . . 1 2 . . 2 Weapon 3 | . . . 2 . . . 1 Highest Loss Streak 5 | . . . 3 3 . . 5 To Critical Strikes . | . . . . . . . . Average Backups 7 | 3 7 8 7 6 5 6 11 Power . | . 1 1 . . . . . Propulsion 1 | 1 2 2 1 1 1 1 1 Utility 2 | . . 2 2 2 2 2 3 Weapon 2 | 1 2 2 2 2 2 2 5 Tool/Special . | . . . . . . . . Unused Backups 25 | . 2 2 5 . . . 16 Power . | . . . . . . . . Propulsion 5 | . . 2 1 . . . 2 Utility 5 | . . . . . . . 5 Weapon 14 | . 2 . 4 . . . 8 Tool/Special 1 | . . . . . . . 1 Average Slot Usage (%) 94 | . 87 100 97 91 88 81 96 Engine 11 | . 14 14 11 11 11 11 8 Treads 29 | . 28 28 41 43 44 13 . Leg 7 | . . . . . . 23 35 Storage 11 | . 14 14 11 11 11 11 9 Protection 9 | . 3 14 10 3 . . 14 Energy Gun 9 | . 26 28 9 . . . . Impact Weapon 12 | . . . 9 12 22 22 26 Peak Build Rating 25 | 4 13 11 21 16 15 16 25 Average Rating 14 | 3 7 11 15 14 13 13 23 On Entrance 10 | . 4 11 11 15 14 14 16 Avg Prop Armor Cover (%) 6 | . . . . 6 . . . Naked Turns . | . . . . . . . . Heaviest Build 63 | 10 24 22 27 24 32 32 63 Greatest Support 89 | 40 40 40 89 86 86 86 50 Greatest Overweight (x) 10 | . . . . . . 10 1 Average Overweight (x) . | . . . . . . 1 . Largest Inventory Capacity 20 | 8 8 8 8 8 15 15 20 Average Capacity 10 | 7 8 8 8 8 8 15 16 Most Carried 16 | 6 8 8 8 8 6 6 16 Average Carried 7 | 3 7 8 7 6 5 6 11 Final Capacity 20 | 8 8 8 8 8 15 15 20 Final Carried 15 | 6 8 8 8 5 6 6 15 Class Distribution -------------------- 76% | Mutant 20% | Scavenger-Mutant Dominant Class ---------------- Mutant | -10/Materials Mutant | -10/Mines Mutant | -9/Materials Mutant | -9/Mines Mutant | -9/Exiles Scavenger-Mutant | -8/Mines Scavenger-Mutant | -8/Materials Resources | -11 -10 -10 -9 -9 -9 -8 -8 ----------- Run | Yrd Mat Min Mat Min Exi Min Mat Matter Collected 1017 | 108 63 157 272 39 260 68 50 Remotely . | . . . . . . . . Salvage Created 1928 | . 179 104 887 96 . 184 478 Parts 96 | . 14 2 57 2 . 3 18 Haulers Intercepted 2 | . . . 1 . . . 1 Recyclers Shooed 1 | . . 1 . . . . . Parts Field Recycled . | . . . . . . . . Retrieved Matter . | . . . . . . . . Parts Self-Destructed . | . . . . . . . . Prevented . | . . . . . . . . Parts Restored . | . . . . . . . . Kills | -11 -10 -10 -9 -9 -9 -8 -8 ------- Run | Yrd Mat Min Mat Min Exi Min Mat Combat Hostiles Destroyed 64 | . 3 2 26 21 . 2 10 Melee 13 | . . . 5 1 . 1 6 Guns 21 | . 2 2 17 . . . . Cannons 1 | . . . 1 . . . . AOE 22 | . 1 . . 20 . . 1 Classes Destroyed 12 | . 3 . 5 1 . 1 2 Worker 3 | . 1 . 2 . . . . Tunneler 1 | . . . . . . 1 . Hauler 2 | . . . 1 . . . 1 Recycler 1 | . . . 1 . . . . Operator 2 | . 1 . 1 . . . . Watcher 1 | . . . 1 . . . . Swarmer 16 | . . . 16 . . . . Grunt 22 | . 3 2 5 1 . 3 8 Brawler 1 | . . . . . . . 1 Sentry 5 | . . . 5 . . . . Hunter 1 | . . . . . . . 1 Assembled 20 | . . . . 20 . . . Best Kill Streak 18 | . 3 1 4 18 . 2 5 Combat Bots Only 18 | . 2 1 4 18 . 2 5 Max Kills in Single Turn 4 | . 2 1 2 4 . 1 1 Gunslinging 1 | . . . 1 . . . . Exploded 4 | . 1 . . 4 . . 1 Melee 1 | . . . 1 1 . 1 1 Uniques/NPCs Destroyed . | . . . . . . . . Combat | -11 -10 -10 -9 -9 -9 -8 -8 -------- Run | Yrd Mat Min Mat Min Exi Min Mat Hostile Shots Fired 346 | . 5 11 195 32 . 1 102 Missed 82 | . 3 3 45 9 . . 22 Hits 264 | . 2 8 150 23 . 1 80 Melee 9 | . . . . 3 . . 6 Projectile 255 | . 2 8 150 20 . 1 74 AOE 13 | . . . . 13 . . . Critical Strikes 6 | . . . 2 . . . 4 Part Disruptions 1 | . . . . 1 . . . Damage Taken 3784 | . 58 104 1587 744 . 19 1272 Core 492 | . . 11 212 112 . . 157 Absorbed by Shields . | . . . . . . . . Ignored by Resistances 80 | . . . . . . . 80 Core Remaining (%) 71 | 100 . 95 . . . 19 . Volleys Fired 95 | . 7 11 58 19 . . . Largest 2 | . 2 2 2 1 . . . Hottest 124 | . 80 80 124 33 . . . Shots Fired 156 | . 14 22 102 18 . . . Gun 130 | . 14 22 94 . . . . Cannon 8 | . . . 8 . . . . Launcher 18 | . . . . 18 . . . Special . | . . . . . . . . Kinetic 12 | . . . 12 . . . . Thermal 59 | . . . 59 . . . . Explosive 18 | . . . . 18 . . . Electromagnetic 67 | . 14 22 31 . . . . Robot Hit Streak 11 | . 7 6 11 4 . . . Robot Miss Streak 6 | . 2 3 6 3 . . . Penetration Max . | . . . . . . . . Secondary Targets 2 | . . . 2 . . . . Max Gunslinging Chain 1 | . . . 1 . . . . Shots Hit Robots 175 | . 9 13 87 11 . 7 48 Core Hits 98 | . 8 5 29 36 . 1 19 Critical Kills 2 | . . . . . . 1 1 Critical Parts Destroyed 16 | . . . 7 . . 3 6 Critical Strikes 26 | . 1 . 13 . . 4 8 Burn 4 | . . . 4 . . . . Corrupt 2 | . 1 . 1 . . . . Smash 20 | . . . 8 . . 4 8 Melee Attacks 129 | . . . 45 6 . 8 70 Impact 129 | . . . 45 6 . 8 70 Slashing . | . . . . . . . . Piercing . | . . . . . . . . Sneak Attacks 10 | . . . 5 . . 3 2 Combat Hostiles 2 | . . . . . . 1 1 Follow-up Attacks 19 | . . . 7 . . 1 11 Damage Inflicted 5331 | . 159 229 1798 1438 . 246 1461 Guns 1085 | . 124 170 791 . . . . Cannons 40 | . . . 40 . . . . Explosions 1669 | . 35 57 79 1325 . . 173 Melee 2526 | . . . 879 113 . 246 1288 Ramming 11 | . . 2 9 . . . . Kinetic 146 | . . . 146 . . . . Thermal 632 | . 35 57 540 . . . . Explosive 1325 | . . . . 1325 . . . Electromagnetic 691 | . 124 170 224 . . . 173 Impact 2526 | . . . 879 113 . 246 1288 Slashing . | . . . . . . . . Piercing . | . . . . . . . . Highest Corruption 22 | . . . 14 15 15 22 11 Average Corruption 14 | . . . 14 14 15 17 9 Corruption Purged . | . . . . . . . . Corruption Blocked . | . . . . . . . . Effects 46 | . . . 12 13 15 4 2 Message Errors 11 | . . . 2 5 4 . . Matter Fused 11 | . . . 3 2 4 2 . Heat Flow Errors 5 | . . . . 1 2 1 1 Energy Discharges 8 | . . . 2 2 2 1 1 Data Loss (minor) 4 | . . . 3 . 1 . . Data Loss (major) 2 | . . . 1 . 1 . . Alerts 3 | . . . 1 1 1 . . Misdirections 1 | . . . . 1 . . . Weapon Failures 1 | . . . . 1 . . . Overload Shots . | . . . . . . . . Overflow Damage 720 | . . . 324 33 . 154 209 Projectiles . | . . . . . . . . Explosions 40 | . . . 7 33 . . . Melee 680 | . . . 317 . . 154 209 Knockbacks 10 | . . . 6 . . . 4 Impact 9 | . . . 5 . . . 4 Kinetic . | . . . . . . . . Secondary 1 | . . . 1 . . . . Self-Inflicted Damage 200 | . 34 . 69 54 . . 43 Shots 6 | . 1 . 2 2 . . 1 Rammed 4 | . . 1 3 . . . . Targets Rammed 4 | . . 1 3 . . . . Kicked . | . . . . . . . . Crushed . | . . . . . . . . Highest Temperature 345 | . 72 289 345 207 111 270 235 Average Temperature 113 | . 26 127 118 118 54 202 98 Received Heat Transfer 1153 | . 12 57 399 46 . 9 630 Effects 5 | . . 1 4 . . . . Energy Bleed 2 | . . 1 1 . . . . Interference 2 | . . . 2 . . . . Damage (minor) 1 | . . . 1 . . . . Siege Activations . | . . . . . . . . Martial Activations . | . . . . . . . . Shielding Activations . | . . . . . . . . Robots Disrupted 1 | . . . . . . . 1 Combat Hostiles 1 | . . . . . . . 1 Robots Corrupted 10 | . . . 5 . . 2 3 Combat Hostiles 7 | . . . 3 . . 1 3 Parts Fried 17 | . . 1 11 . . 3 2 Impact Corruptions 28 | . . . 16 . . 4 8 Robots Melted . | . . . . . . . . Combat Hostiles . | . . . . . . . . Parts Melted 4 | . . . 4 . . . . Heat Transferred 1593 | . . 50 1543 . . . . Parts Sabotaged . | . . . . . . . . Parts Stolen . | . . . . . . . . Parts Stripped . | . . . . . . . . Power Chain Reactions 4 | . 1 1 2 . . . . Alert | -11 -10 -10 -9 -9 -9 -8 -8 ------- Run | Yrd Mat Min Mat Min Exi Min Mat Maximum Alert Level 2 | . . . 2 1 . . . Low Security (%) 80 | 100 100 100 53 71 . 100 100 Level 1 12 | . . . 26 28 . . . Level 2 7 | . . . 19 . . . . Level 3 . | . . . . . . . . Level 4 . | . . . . . . . . Level 5 . | . . . . . . . . High Security . | . . . . . . . . Max Security . | . . . . . . . . Peak Influence 450 | . 74 49 450 234 . 58 117 Initial 151 | . . 14 . 151 . . 11 Average 108 | . 13 9 210 180 . 37 42 Influence Increases 1668 | . 131 69 872 193 . 99 304 Destroy 0b10 Robot/C 940 | . 60 40 520 60 . 60 200 Destroy 0b10 Robot/NC 50 | . 10 . 30 . . 5 5 Destroy Leader 216 | . 20 10 124 10 . 10 42 Allied During Kill 20 | . . . . 11 . 9 . Successful Hack 26 | . 7 . 8 . . . 11 Disable Machine 105 | . 30 . 15 15 . 15 30 Destroy Structure 116 | . 4 4 10 97 . . 1 Lose Combat Pursuer 195 | . . 15 165 . . . 15 Influence Decreases 1616 | . 94 106 484 407 174 70 281 Entered New Map 452 | . . 23 . 237 174 . 18 Time Decay 986 | . 94 83 424 130 . 30 225 Lost Part 138 | . . . 60 40 . . 38 Lost Ally 40 | . . . . . . 40 . Squads Dispatched 7 | . 1 . 3 . . . 3 Investigation 3 | . 1 . 2 . . . . Extermination . | . . . . . . . . Reinforcement 4 | . . . 1 . . . 3 Assault . | . . . . . . . . Garrison . | . . . . . . . . Intercept . | . . . . . . . . Searches Triggered . | . . . . . . . . Construction Impeded . | . . . . . . . . Haulers Reinforced . | . . . . . . . . Active Scanning Responses . | . . . . . . . . Cargo Convoy Interrupts . | . . . . . . . . Stealth | -11 -10 -10 -9 -9 -9 -8 -8 --------- Run | Yrd Mat Min Mat Min Exi Min Mat Distress Signals 7 | . 1 . 4 . . . 2 Communications Jammed . | . . . . . . . . Distress Signals . | . . . . . . . . Times Spotted 103 | . 7 3 46 26 . 3 18 Peak Tracking Total 15 | . 4 2 6 15 . 3 5 Tactical Retreats 10 | . . 1 7 1 . . 1 Traps | -11 -10 -10 -9 -9 -9 -8 -8 ------- Run | Yrd Mat Min Mat Min Exi Min Mat Traps Triggered 2 | . 1 . 1 . . . . Indirectly . | . . . . . . . . Trap Hack Attempts . | . . . . . . . . Triggered . | . . . . . . . . Disarmed . | . . . . . . . . Reprogrammed . | . . . . . . . . Reused . | . . . . . . . . Traps Extracted . | . . . . . . . . Installed . | . . . . . . . . Triggered . | . . . . . . . . Machines | -11 -10 -10 -9 -9 -9 -8 -8 ---------- Run | Yrd Mat Min Mat Min Exi Min Mat Machines Disabled 7 | . 2 . 1 1 . 1 2 Max in Single Turn 2 | . 1 . 1 1 . . 2 Machines Repaired . | . . . . . . . . Machines Dismantled . | . . . . . . . . Machines Sabotaged . | . . . . . . . . Overloaded Fab Kills . | . . . . . . . . Hacking | -11 -10 -10 -9 -9 -9 -8 -8 --------- Run | Yrd Mat Min Mat Min Exi Min Mat Machines Accessed 7 | . 2 . 1 . 1 . 3 Terminals 5 | . 2 . 1 . . . 2 Fabricators . | . . . . . . . . Repair Stations . | . . . . . . . . Recycling Units . | . . . . . . . . Scanalyzers 1 | . . . . . . . 1 Garrison Access . | . . . . . . . . Total Hacks 18 | . 7 . 3 . 1 . 7 Successful 8 | . 2 . 1 . 1 . 4 Failed 10 | . 5 . 2 . . . 3 Catastrophic 2 | . 1 . . . . . 1 Database Lockouts . | . . . . . . . . Manual 16 | . 7 . 3 . 1 . 5 Terminals 15 | . 7 . 3 . . . 5 Fabricators . | . . . . . . . . Repair Stations . | . . . . . . . . Recycling Units . | . . . . . . . . Scanalyzers 2 | . . . . . . . 2 Garrison Access . | . . . . . . . . Terminal Hacks 3 | . 1 . 1 . 1 . . Part Schematic 1 | . 1 . . . . . . Branch Access Points 1 | . . . 1 . . . . Proto ID Catalog 1 | . . . . . 1 . . Fabricator Hacks . | . . . . . . . . Repair Station Hacks . | . . . . . . . . Recycling Unit Hacks . | . . . . . . . . Scanalyzer 2 | . . . . . . . 2 Retrieve Study 2 | . . . . . . . 2 Garrison Access Hacks . | . . . . . . . . Unauthorized Hacks 3 | . 1 . . . . . 2 Terminals 3 | . 1 . . . . . 2 Botnet 3 | . 1 . . . . . 2 Fabricators . | . . . . . . . . Repair Stations . | . . . . . . . . Recycling Units . | . . . . . . . . Scanalyzers . | . . . . . . . . Garrison Access . | . . . . . . . . Data Cores Recovered 1 | . 1 . . . . . . Used . | . . . . . . . . Hacking Detections 4 | . 2 . 1 . . . 1 Full Trace Events . | . . . . . . . . Feedback Events . | . . . . . . . . Feedback Blocked . | . . . . . . . . Robot Schematics Acquired . | . . . . . . . . Robots Built . | . . . . . . . . Authchips . | . . . . . . . . Time . | . . . . . . . . Total Robot Build Rating . | . . . . . . . . Part Schematics Acquired 1 | . 1 . . . . . . Parts Built . | . . . . . . . . Authchips . | . . . . . . . . Time . | . . . . . . . . Total Part Build Rating . | . . . . . . . . Part Studies Acquired 2 | . . . . . . . 2 Parts Repaired . | . . . . . . . . Time . | . . . . . . . . Parts Recycled . | . . . . . . . . Recycled Matter . | . . . . . . . . Retrieved Matter . | . . . . . . . . Retrieved Components . | . . . . . . . . Parts Scanalyzed . | . . . . . . . . Part Schematics Acquired . | . . . . . . . . Parts Damaged . | . . . . . . . . Bothacking | -11 -10 -10 -9 -9 -9 -8 -8 ------------ Run | Yrd Mat Min Mat Min Exi Min Mat Used RIF Installer . | . . . . . . . . Robots Hacked . | . . . . . . . . Non-combat . | . . . . . . . . Combat . | . . . . . . . . Robot Hacks Applied . | . . . . . . . . Relay Couplers Released . | . . . . . . . . Fabnet Peak Effective % . | . . . . . . . . Robots Rewired . | . . . . . . . . Allies Hacked . | . . . . . . . . Hacks Repelled . | . . . . . . . . Allies | -11 -10 -10 -9 -9 -9 -8 -8 -------- Run | Yrd Mat Min Mat Min Exi Min Mat Total Allies 3 | . . . . 3 . . . Largest Group 3 | . . . . 3 3 3 . Highest-Rated Group 40 | . . . . 40 40 40 . Highest-Rated Ally 16 | . . . . 16 16 16 . Total Orders . | . . . . . . . . Ally Attacks 27 | . . . . 11 . 16 . Total Damage 249 | . . . . 81 . 168 . Kills 3 | . . . . 2 . 1 . Allies Corrupted . | . . . . . . . . Allies Melted . | . . . . . . . . Intel | -11 -10 -10 -9 -9 -9 -8 -8 ------- Run | Yrd Mat Min Mat Min Exi Min Mat Active Infowar (turns) 109 | . . . . . . . 109 Sensors 109 | . . . . . . . 109 Robot Analysis Total . | . . . . . . . . Derelict Logs Recovered 2 | . . 1 . 1 . . . Drone Launches . | . . . . . . . . Drone Recoveries . | . . . . . . . . Exploration | -11 -10 -10 -9 -9 -9 -8 -8 ------------- Run | Yrd Mat Min Mat Min Exi Min Mat Turns Passed 3617 | 71 435 434 1218 272 379 71 737 Spaces Moved 1701 | 47 244 244 523 121 235 21 266 Core 18 | 15 . . . . . 3 . Treads 1401 | 32 244 244 523 121 235 2 . Legs 282 | . . . . . . 16 266 Wheels . | . . . . . . . . Hover . | . . . . . . . . Flight . | . . . . . . . . Fastest Speed 50 | 50 160 160 160 160 160 120 120 Average Speed 156 | 124 160 160 160 160 160 201 143 Slowest Speed 550 | 160 160 160 160 160 160 550 190 Overloaded Moves . | . . . . . . . . Propulsion Burnouts . | . . . . . . . . Robots Hopped . | . . . . . . . . Potential Cave-ins . | . . . . . . . . Cave-ins Triggered . | . . . . . . . . Exploration Rate (%) 36 | 3 36 67 53 35 61 15 19 Regions Visited 7 Branch Regions 4 Pre-discovered Areas . | . . . . . . . . Known Exits Taken 1 | . . . 1 . . . . Unknown Exits Taken 6 | 1 1 1 . 1 1 1 . Scrap Searched 2 | . . 2 . . . . . Spaces Dug 1 | . . . . . . . 1 Terrain Destroyed 169 | . 3 6 6 153 . . 1 Melee 1 | . . . . . . . 1 Projectile . | . . . . . . . . AOE 168 | . 3 6 6 153 . . . Terrain Rammed . | . . . . . . . . Walls Destroyed . | . . . . . . . . Machines Disabled . | . . . . . . . . Actions | -11 -10 -10 -9 -9 -9 -8 -8 --------- Run | Yrd Mat Min Mat Min Exi Min Mat Total 2306 | 57 278 266 739 169 238 37 522 Wait 267 | . 5 7 66 18 . 2 169 Move 1694 | 46 243 243 522 120 234 20 266 Hop . | . . . . . . . . Pick Up 42 | 6 7 2 10 . 1 . 16 Fast Attach 26 | 3 6 . 9 . 1 4 3 Attach 15 | 1 2 . 6 3 . . 3 Detach . | . . . . . . . . Swap 15 | 1 . . 8 3 1 . 2 Drop 42 | . 8 2 19 . 1 4 8 Fire 95 | . 7 11 58 19 . . . Melee 106 | . . . 38 6 . 7 55 Ram . | . . . . . . . . Kick . | . . . . . . . . Crush 4 | . . 1 3 . . . . Escape Stasis . | . . . . . . . . Rewire . | . . . . . . . . Trap . | . . . . . . . . Miscellaneous . | . . . . . . . . Route ------- -11/Scrapyard -10/Materials -10/Mines (discovered 2 exits: *Mat / [*Sub]) -9/Materials (discovered 3 exits: *Mat / *Min / Sto) -9/Mines -9/Exiles -8/Mines -8/Materials History --------- Turn | Location | Event 7 | -11/Scrapyard | Discovered new exit (range 15) 72 | -11/Scrapyard | Entered Materials 261 | -10/Materials | Discovered new exit (range 7) 301 | -10/Materials | Build established: Mutant 507 | -10/Materials | Entered Mines 533 | -10/Mines | Learned Materials emergency access door positions 559 | -10/Mines | Found a damaged Exp. Sensor Array with a note attached 591 | -10/Mines | Found Prototype Device 805 | -10/Mines | Discovered new exit (range 8) 926 | -10/Mines | Discovered new exit (range 9) 941 | -10/Mines | Entered Materials 941 | -9/Materials | Evolved 2 slots: Propulsion x2 1807 | -9/Materials | Core integrity fell below 50% 1819 | -9/Materials | Lost 3 parts (1p1n1u) 1881 | -9/Materials | System corruption reached 10% 1971 | -9/Materials | Discovered new exit (range 16) 2028 | -9/Materials | Identified exit to Mines 2028 | -9/Materials | Identified exit to Storage 2159 | -9/Materials | Entered Mines 2160 | -9/Mines | Assembled infested the area 2243 | -9/Mines | Destroyed 18 combat bots 2257 | -9/Mines | Core integrity fell below 20% 2291 | -9/Mines | Lost 3 parts (1n2u) 2292 | -9/Mines | Assisted by bots powering up and referring to "LRC-V3" 2296 | -9/Mines | Met a Derelict bent on vengeance 2333 | -9/Mines | Learned Materials terminal intel 2413 | -9/Mines | Deemed a non-threat by the Exiles lab entrance 2413 | -9/Mines | Discovered new exit (range 5) 2431 | -9/Mines | Entered Exiles 2431 | -9/Exiles | Accompanied by 3 allies 2473 | -9/Exiles | Met 8R-AWN 2499 | -9/Exiles | Met EX-HEX 2542 | -9/Exiles | Met EX-BIN 2564 | -9/Exiles | Aligned with FarCom system 2566 | -9/Exiles | Given EX-Vault access code 2604 | -9/Exiles | Opened EX-Vault 2615 | -9/Exiles | Found Field Lobotomy Kit 2650 | -9/Exiles | Warned to stay clear of 0b10 Research branches 2700 | -9/Exiles | Met EX-DEC 2798 | -9/Exiles | Discovered new exit (range 10) 2810 | -9/Exiles | Left Exiles lab with Field Lobotomy Kit 2810 | -9/Exiles | Entered Mines 2810 | -8/Mines | Accompanied by 3 allies 2816 | -8/Mines | Discovered new exit (range 11) 2881 | -8/Mines | Entered Materials 2881 | -8/Materials | Evolved 2 slots: Utility x1, Weapon x1 2882 | -8/Materials | Loaded intel: 12 terminal locations 2889 | -8/Materials | Identified Exp. Sensor Array 3323 | -8/Materials | Build established: Scavenger-Mutant 3586 | -8/Materials | System corruption reached 10% 3618 | -8/Materials | Self-destructed Last Messages --------------- 03593_ B-36 Bruiser destroyed. 03593_ Scanalyzer disabled. 03593_ G-47 Trooper shuts down. 03593_ Door malfunctions. 03595_ K-01 Serf collects debris. 03601_ G-47 Trooper misfires. 03603_ System corrupted: Energy discharge (-24). 03603_ K-01 Serf collects debris. 03603_ Hammer destroyed. 03604_ G-47 Trooper destroyed. 03606_ K-01 Serf collects debris. 03611_ G-50 Soldier suffers critical hit (Smash). 03611_ Destroyed Adv. Heat Sink. 03611_ G-50 Soldier system corrupted by crushing effect. 03611_ K-01 Serf collects debris. 03614_ G-47 Trooper reactivates. 03614_ K-01 Serf collects debris. 03615_ Hrd. Light Armor Plating destroyed. Map ----- +----------------------------------------------------+ | ?????????????????????????????????????????# + | | ?????????????????????????????????????????# # | | ?????????????????????? ??????????????????# # | | ????????????????????# ?????????????????# ##### | | ????????????????????# ?????????????????# | | ???????????????????## ?????????????????# | | ??????????????????? # #????????????????# | | ?????????????????""? #???????????????# ##### | | ?????????????????T??? ???????????????# #???? | | ?????????????????????# #??????????????# #???? | | ?????????????????????# #??????????????# #???? | | ?????????????????????# #??????????????# #???? | | ?????????????????????# #??????????????# #???? | | ?????????????????????# #???###+##?????# #???? | | ?????????????????????# ##### ####### #???? | | ?????????????????????# #???? | | ?????????????????????# T #???? | | ?????????????????????#g ### ####### ##### | | ?????????????????????# #?## ######## | | ?????????????????????# g #??# # # | | ?????????????????????# #??# # # | | ????????????????????## #??# + + ##### | | ????????????????????+ =%=####??# # # #???? | | ????????????????????###g########### # #???? | | ????????????????????# * %=k ! ## # #???? | | ????????????????????# @/% #############???? | | ??????"""???????????# #???????????????? | | ??????"T"???????????# g! #???????????????? | | ????????????????????# g #???????????????? | | ????????????????????# #???????????????? | | ????????????????????##############???????????????? | | | | | | | | | | | | | | | | | | | | | | | | | | | | | | | | | | | | | | | +----------------------------------------------------+ Best States ------------- Heat Dissipation 31 Energy Generation 14 Energy Capacity 280 Matter Stores 300 Matter Capacity 300 Sight Range 16 Robot Scan Range 20 Terrain Scan Density 10 Armor Coverage 300 Resistance: TH 10 Evasion (%) 55 Recoil Reduction 4 Item Schematics ----------------- Hcp. Storage Unit | -10/Materials | Hacked Robot Schematics ------------------ None Fabricated ------------ Nothing Repaired ---------- Nothing Studied --------- Aluminum Leg | -8/Materials | Hacked Carbon-fiber Leg | -8/Materials | Hacked Alien Tech Used ----------------- None Achievements -------------- None Challenges ------------ None Game ------ Seed HoverSuspensionCleaver Manual? 0 Play Time 00:21:05 Cumulative 430.7 hours Start 2026.07.07 @ 17:56:33 End 2026.07.07 @ 18:15:26 Sessions 1 Manual Loads 0 Difficulty Rogue Special Mode None Game No. 396 Rogue 396 Adventurer 0 Explorer 0 Win Type - Total 11 Types 7/0/2/1/0/0/0/0/0/1 Lore% 61 Gallery% 68 Achievement% 64 Wizard Run 0 Options --------- Layout 1 ASCII 0 Keyboard 0 Movement Mouse Keybinds 0 Fullscreen 2 Font 24/Cog Map View 50x35 Zoom Use 35% Tactical HUD 1 Map Filters NONE Filters NONE Steam 1 RUN: aaa8352a-8058-4a84-bae4-696c5f72b37d